[Event "SRB-chT Women 1st League 2019"]
[Site "Subotica"]
[Date "2019.08.29"]
[Round "8"]
[White "Belenkaya, Dina"]
[Black "Atalik, Ekaterina"]
[Result "1/2-1/2"]
[ECO "B19"]
[WhiteElo "2298"]
[BlackElo "2456"]
[Annotator "ChessBase"]
[PlyCount "112"]
[EventDate "2019.08.23"]
[EventType "team-tourn"]
[EventCountry "SRB"]
[SourceTitle "playchess.com"]
[Source "ChessBase"]
[SourceQuality "1"]
[TimeControl "40/5400+30:1800+30"]

1. e4 {[%emt 0:00:30]} c6 {[%emt 0:00:30]} 2. d4 {[%emt 0:00:00]} d5 {[%emt 0:00:00]} 3. Nc3 {[%emt 0:00:00]} dxe4 {[%emt 0:00:00]} 4. Nxe4 {[%emt 0:00:30]} Bf5 {[%emt 0:00:30]} 5. Ng3 {[%emt 0:00:00]} Bg6 {[%emt 0:00:00]} 6. h4 {[%emt 0:00:00]} h6 {[%emt 0:01:00]} 7. Nf3 {[%emt 0:03:30]} e6 {[%emt 0:00:30]} 8. Ne5 {[%emt 0:00:30]} Bd6 {[%emt 0:00:30]} 9. Bd3 {[%emt 0:00:30]} Bxd3 {[%emt 0:00:30]} 10. Qxd3 {[%emt 0:00:30]} Nd7 {[%emt 0:00:30]} 11. f4 {[%emt 0:20:30]} Ngf6 {[%emt 0:15:30]} 12. Qf3 {[%emt 0:00:30]} Qc7 {[%emt 0:00:30]} 13. Bd2 {[%emt 0:00:30]} O-O {[%emt 0:00:30]} 14. O-O-O {[%emt 0:00:30]} c5 {[%emt 0:00:30]} 15. Nxd7 {[%emt 0:01:30]} Nxd7 {[%emt 0:00:30]} 16. Kb1 {[%emt 0:00:30]} cxd4 {[%emt 0:00:30]} 17. c3 {[%emt 0:00:30]} Qb6 {[%emt 0:00:30]} 18. Ne4 {[%emt 0:00:30]} Qc7 {[%emt 0:00:30]} 19. Nxd6 {[%emt 0:00:30]} Qxd6 {[%emt 0:00:30]} 20. Bc1 {[%emt 0:07:30]} Qc7 {[%emt 0:11:30]} 21. Rxd4 {[%emt 0:01:30]} f5 {[%emt 0:05:30]} 22. Re1 {[%emt 0:02:30]} Rfe8 {[%emt 0:03:30]} 23. g4 {[%emt 0:11:30]} fxg4 {[%emt 0:08:30]} 24. Qxg4 {[%emt 0:00:30]} Nf6 {[%emt 0:03:30]} 25. Qh3 {[%emt 0:03:30]} Qf7 {[%emt 0:06:30]} 26. Rd6 {[%emt 0:09:30]} Qg6+ {[%emt 0:02:30]} 27. Ka1 {[%emt 0:01:30]} Qf5 {[%emt 0:12:30]} 28. Qg2 {[%emt 0:01:30]} Re7 {[%emt 0:05:30]} 29. Re5 {[%emt 0:12:30]} Qg4 {[%emt 0:00:00]} 30. Qh1 {[%emt 0:05:50]} Rae8 {[%emt 0:02:47]} 31. c4 {[%emt 0:07:10]} Rd7 {[%emt 0:05:46]} 32. c5 {[%emt 0:02:28]} Rxd6 {[%emt 0:01:48]} 33. cxd6 {[%emt 0:00:04]} Rd8 {[%emt 0:02:24]} 34. Qxb7 {[%emt 0:01:14]} Qd1 {[%emt 0:00:39]} 35. Rc5 {[%emt 0:00:35]} Rd7 {[%emt 0:02:59]} 36. Qb8+ {[%emt 0:01:42]} Kh7 {[%emt 0:00:22]} 37. Rc6 {[%emt 0:02:41]} Qd5 {[%emt 0:01:08]} 38. Rc8 {[%emt 0:02:09]} Qxd6 {[%emt 0:00:28]} 39. Qxd6 {[%emt 0:00:15]} Rxd6 {[%emt 0:00:04]} 40. b4 {[%emt 0:00:00]} a6 {[%emt 0:00:00]} 41. Kb2 {[%emt 0:03:52]} Nd5 {[%emt 0:03:05]} 42. Kb3 {[%emt 0:02:30]} Kg6 {[%emt 0:19:05]} 43. Rf8 {[%emt 0:15:33]} Kh5 {[%emt 0:00:33]} 44. Bb2 {[%emt 0:00:30]} g6 {[%emt 0:00:37]} 45. Bg7 {[%emt 0:00:30]} Rb6 {[%emt 0:00:35]} 46. a3 {[%emt 0:00:55]} Rb7 {[%emt 0:00:30]} 47. Be5 {[%emt 0:01:13]} a5 {[%emt 0:03:17]} 48. Bd6 {[%emt 0:00:19]} axb4 {[%emt 0:00:29]} 49. axb4 {[%emt 0:00:23]} Kxh4 {[%emt 0:02:26]} 50. Rh8 {[%emt 0:01:56]} Kg4 {[%emt 0:04:19]} 51. Rxh6 {[%emt 0:00:41]} Nxf4 {[%emt 0:00:13]} 52. Kc4 {[%emt 0:05:41]} g5 {[%emt 0:00:47]} 53. Rf6 {[%emt 0:01:26]} e5 {[%emt 0:02:41]} 54. Bxe5 {[%emt 0:01:06]} Rxb4+ {[%emt 0:00:07]} 55. Kxb4 {[%emt 0:00:07]} Nd5+ {[%emt 0:00:08]} 56. Kc5 {[%emt 0:00:03]} Nxf6 {[%emt 0:00:02]} 1/2-1/2

[Event "SRB-chT Women 1st League 2019"]
[Site "Subotica"]
[Date "2019.08.29"]
[Round "8"]
[White "Eric, Jovana"]
[Black "Nestorovic, Katarina"]
[Result "1-0"]
[ECO "B80"]
[WhiteElo "2270"]
[BlackElo "2159"]
[Annotator "NA"]
[PlyCount "81"]
[EventDate "2019.08.23"]
[EventType "team-tourn"]
[EventCountry "SRB"]
[SourceTitle "playchess.com"]
[Source "ChessBase"]
[SourceQuality "1"]
[TimeControl "40/5400+30:1800+30"]

1. e4 {[%emt 0:00:30]} c5 {[%emt 0:00:30]} 2. Nf3 {[%emt 0:00:00]} e6 {[%emt 0:00:00]} 3. d4 {[%emt 0:00:00]} cxd4 {[%emt 0:00:00]} 4. Nxd4 {[%emt 0:00:30]} Nf6 {[%emt 0:00:00]} 5. Nc3 {[%emt 0:00:00]} d6 {[%emt 0:00:00]} 6. Be3 {[%emt 0:00:00]} a6 {[%emt 0:00:30]} 7. f3 {[%emt 0:00:30]} b5 {[%emt 0:02:30]} 8. Qd2 {[%emt 0:01:30]} Nbd7 {[%emt 0:01:30]} 9. a4 {[%emt 0:08:30]} b4 {[%emt 0:03:30]} 10. Na2 {[%emt 0:00:30]} d5 {[%emt 0:00:30]} 11. Nxb4 {[%emt 0:01:30]} dxe4 {[%emt 0:02:30]} 12. c3 {[%emt 0:07:30]} Bb7 {[%emt 0:03:30]} 13. Be2 {[%emt 0:00:30]} Qc7 {[%emt 0:00:30]} 14. O-O {[%emt 0:01:30]} Bd6 {[%emt 0:12:30]} 15. f4 {[%emt 0:00:30]} O-O {[%emt 0:01:30]} 16. Rad1 {[%emt 0:02:30]} Bc5 {[%emt 0:06:30]} 17. Kh1 {[%emt 0:03:30]} Rfd8 {[%emt 0:09:30]} 18. Qe1 {[%emt 0:08:30]} Bxb4 {[%emt 0:02:30]} 19. cxb4 {[%emt 0:00:00]} Nd5 {[%emt 0:00:30]} 20. Bc1 {[%emt 0:05:00]} Qb6 {[%emt 0:06:30]} 21. f5 {[%emt 0:16:30]} e5 {[%emt 0:00:30]} 22. Nc2 {[%emt 0:00:30]} Rac8 {[%emt 0:12:30]} 23. a5 {[%emt 0:00:30]} Qc6 {[%emt 0:01:30]} 24. Na3 {[%emt 0:04:30]} Qa4 {[%emt 0:05:30]} 25. b5 {[%emt 0:04:30]} e3 {[%emt 0:06:30]} 26. bxa6 {[%emt 0:01:30]} Bc6 {[%emt 0:02:31]} 27. b3 {[%emt 0:03:30]} Qxb3 {[%emt 0:18:07]} 28. Bc4 {[%emt 0:00:00]} Qa4 {[%emt 0:00:54]} 29. Bxd5 {[%emt 0:02:00]} Bxd5 {[%emt 0:00:07]} 30. Rxd5 {[%emt 0:00:00]} Qe4 {[%emt 0:00:00]} 31. Rd6 {[%emt 0:09:37]} e2 {[%emt 0:00:02]} 32. Rg1 {[%emt 0:00:00]} Nc5 {[%emt 0:00:32]} 33. Rxd8+ {[%emt 0:00:23]} Rxd8 {[%emt 0:00:02]} 34. Bd2 {[%emt 0:01:06]} Nd3 {[%emt 0:00:39]} 35. Qg3 {[%emt 0:00:09]} Qxf5 {[%emt 0:00:11]} 36. Be1 {[%emt 0:01:43]} Qf1 {[%emt 0:02:27]} 37. a7 {[%emt 0:01:14]} Nxe1 {[%emt 0:00:53]} 38. Qxe1 {[%emt 0:00:25]} Qxe1 {[%emt 0:00:32]} 39. Rxe1 {[%emt 0:00:05]} f6 {[%emt 0:00:21]} 40. Kg1 {[%emt 0:00:00]} Ra8 {[%emt 0:00:00]} 41. Nb5 {[%emt 0:01:18]} 1-0

[Event "SRB-chT Women 1st League 2019"]
[Site "Subotica"]
[Date "2019.08.29"]
[Round "8"]
[White "Manakova, Maria"]
[Black "Dimitrijevic, Aleksandra"]
[Result "1-0"]
[ECO "C50"]
[WhiteElo "2237"]
[BlackElo "2142"]
[Annotator "NA"]
[PlyCount "107"]
[EventDate "2019.08.23"]
[EventType "team-tourn"]
[EventCountry "SRB"]
[SourceTitle "playchess.com"]
[Source "ChessBase"]
[SourceQuality "1"]
[TimeControl "40/5400+30:1800+30"]

1. e4 {[%emt 0:00:30]} e5 {[%emt 0:00:30]} 2. Nf3 {[%emt 0:00:00]} Nc6 {[%emt 0:00:30]} 3. Bc4 {[%emt 0:00:00]} d6 {[%emt 0:00:00]} 4. d4 {[%emt 0:02:30]} exd4 {[%emt 0:00:00]} 5. Nxd4 {[%emt 0:00:00]} g6 {[%emt 0:00:00]} 6. Nxc6 {[%emt 0:08:00]} bxc6 {[%emt 0:01:00]} 7. Qf3 {[%emt 0:00:30]} Qf6 {[%emt 0:05:30]} 8. Qg3 {[%emt 0:03:30]} Qe7 {[%emt 0:02:30]} 9. O-O {[%emt 0:03:30]} Bg7 {[%emt 0:07:30]} 10. Nc3 {[%emt 0:00:30]} Nf6 {[%emt 0:03:30]} 11. Bg5 {[%emt 0:06:30]} h6 {[%emt 0:01:30]} 12. Bd2 {[%emt 0:03:30]} Be6 {[%emt 0:05:30]} 13. Be2 {[%emt 0:24:30]} Bd7 {[%emt 0:29:30]} 14. Rae1 {[%emt 0:03:30]} O-O {[%emt 0:05:30]} 15. Bd1 {[%emt 0:00:30]} Rae8 {[%emt 0:08:30]} 16. f4 {[%emt 0:01:30]} Kh7 {[%emt 0:02:30]} 17. Kh1 {[%emt 0:01:30]} Qd8 {[%emt 0:01:30]} 18. Bf3 {[%emt 0:05:30]} Re7 {[%emt 0:06:12]} 19. Qh4 {[%emt 0:09:30]} Ng8 {[%emt 0:02:21]} 20. g4 {[%emt 0:04:30]} f5 {[%emt 0:01:12]} 21. exf5 {[%emt 0:00:30]} gxf5 {[%emt 0:00:10]} 22. g5 {[%emt 0:00:30]} Rxe1 {[%emt 0:02:07]} 23. Bxe1 {[%emt 0:02:05]} Ne7 {[%emt 0:01:23]} 24. Qg3 {[%emt 0:06:14]} Be6 {[%emt 0:01:55]} 25. Rg1 {[%emt 0:03:27]} c5 {[%emt 0:00:59]} 26. Qg2 {[%emt 0:01:12]} Qd7 {[%emt 0:03:22]} 27. Bh4 {[%emt 0:00:57]} Rg8 {[%emt 0:02:44]} 28. g6+ {[%emt 0:02:24]} Kh8 {[%emt 0:00:05]} 29. Qh3 {[%emt 0:02:14]} Re8 {[%emt 0:00:38]} 30. Bg5 {[%emt 0:01:25]} Ng8 {[%emt 0:00:07]} 31. Nd5 {[%emt 0:00:19]} c6 {[%emt 0:00:59]} 32. Ne3 {[%emt 0:01:22]} d5 {[%emt 0:00:11]} 33. Be2 {[%emt 0:01:18]} d4 {[%emt 0:00:10]} 34. Ng2 {[%emt 0:00:25]} c4 {[%emt 0:01:25]} 35. Bh4 {[%emt 0:00:57]} Bd5 {[%emt 0:01:13]} 36. Bf3 {[%emt 0:00:03]} Re6 {[%emt 0:00:14]} 37. Ne1 {[%emt 0:00:30]} Re3 {[%emt 0:01:12]} 38. Bf2 {[%emt 0:00:25]} Re7 {[%emt 0:01:53]} 39. Qg2 {[%emt 0:00:47]} Be4 {[%emt 0:00:27]} 40. Bh4 {[%emt 0:00:00]} Re8 {[%emt 0:00:00]} 41. b3 {[%emt 0:07:26]} d3 {[%emt 0:09:01]} 42. bxc4 {[%emt 0:00:30]} d2 {[%emt 0:00:00]} 43. Nd3 {[%emt 0:00:30]} Bxd3 {[%emt 0:01:00]} 44. Qxd2 {[%emt 0:00:30]} Re2 {[%emt 0:04:30]} 45. Qxd3 {[%emt 0:00:30]} Qxd3 {[%emt 0:00:00]} 46. cxd3 {[%emt 0:00:30]} Rxa2 {[%emt 0:00:00]} 47. Bxc6 {[%emt 0:01:30]} Bd4 {[%emt 0:00:30]} 48. Rb1 {[%emt 0:02:30]} Nf6 {[%emt 0:03:18]} 49. Bxf6+ {[%emt 0:01:30]} Bxf6 {[%emt 0:00:05]} 50. Rb7 {[%emt 0:00:30]} Bd4 {[%emt 0:00:46]} 51. Rh7+ {[%emt 0:00:30]} Kg8 {[%emt 0:00:04]} 52. Bd5+ {[%emt 0:00:00]} Kf8 {[%emt 0:00:17]} 53. Rf7+ {[%emt 0:00:00]} Ke8 {[%emt 0:00:30]} 54. Bc6+ 1-0

[Event "SRB-chT Women 1st League 2019"]
[Site "Subotica"]
[Date "2019.08.29"]
[Round "8"]
[White "Prudnikova, Svetlana"]
[Black "Hejazipour, Mitra"]
[Result "1/2-1/2"]
[ECO "D38"]
[WhiteElo "2234"]
[BlackElo "2251"]
[Annotator "NA"]
[PlyCount "43"]
[EventDate "2019.08.23"]
[EventType "team-tourn"]
[EventCountry "SRB"]
[SourceTitle "playchess.com"]
[Source "ChessBase"]
[SourceQuality "1"]
[TimeControl "40/5400+30:1800+30"]

1. Nf3 {[%emt 1:30:30]} Nf6 {[%emt 1:30:30]} 2. c4 {[%emt 0:00:30]} e6 {[%emt 0:00:30]} 3. Nc3 {[%emt 0:00:30]} d5 {[%emt 0:00:30]} 4. d4 {[%emt 0:00:30]} Bb4 {[%emt 0:00:30]} 5. cxd5 {[%emt 0:00:30]} exd5 {[%emt 0:00:30]} 6. Qa4+ {[%emt 0:00:30]} Nc6 {[%emt 0:00:30]} 7. Ne5 {[%emt 0:00:30]} Bd7 {[%emt 0:00:30]} 8. Nxc6 {[%emt 0:00:30]} Bxc3+ {[%emt 0:00:30]} 9. bxc3 {[%emt 0:00:30]} Bxc6 {[%emt 0:00:30]} 10. Qa3 {[%emt 0:00:30]} Ne4 {[%emt 0:00:30]} 11. Bf4 {[%emt 0:00:30]} Qf6 {[%emt 0:00:30]} 12. g3 {[%emt 0:00:30]} Nd6 {[%emt 0:00:30]} 13. Bg2 {[%emt 0:00:30]} O-O {[%emt 0:00:30]} 14. Bxd6 {[%emt 0:00:30]} cxd6 {[%emt 0:00:30]} 15. O-O {[%emt 0:00:30]} Rfc8 {[%emt 0:00:30]} 16. Rfb1 {[%emt 0:00:30]} Rc7 {[%emt 0:00:30]} 17. Rb4 {[%emt 0:00:30]} b6 {[%emt 0:00:30]} 18. e3 {[%emt 0:00:30]} Rac8 {[%emt 0:00:30]} 19. Qb2 {[%emt 0:00:30]} Bb7 {[%emt 0:00:30]} 20. Rb3 {[%emt 0:00:30]} Qf5 {[%emt 0:00:30]} 21. a4 {[%emt 0:00:30]} Ba6 {[%emt 0:00:30]} 22. a5 {[%emt 0:00:30]} 1/2-1/2

[Event "SRB-chT Women 1st League 2019"]
[Site "Subotica"]
[Date "2019.08.29"]
[Round "8"]
[White "Djukic, Sandra"]
[Black "Drljevic, Ljilja"]
[Result "1/2-1/2"]
[ECO "E97"]
[WhiteElo "2179"]
[BlackElo "2162"]
[Annotator "NA"]
[PlyCount "35"]
[EventDate "2019.08.23"]
[EventType "team-tourn"]
[EventCountry "SRB"]
[SourceTitle "playchess.com"]
[Source "ChessBase"]
[SourceQuality "1"]
[TimeControl "40/5400+30:1800+30"]

1. d4 {[%emt 0:00:30]} d6 {[%emt 0:00:30]} 2. Nf3 {[%emt 0:00:30]} Nf6 {[%emt 0:00:30]} 3. c4 {[%emt 0:01:30]} g6 {[%emt 0:03:30]} 4. Nc3 {[%emt 0:01:30]} Bg7 {[%emt 0:00:00]} 5. e4 {[%emt 0:03:30]} O-O {[%emt 0:00:00]} 6. Be2 {[%emt 0:00:00]} e5 {[%emt 0:02:30]} 7. O-O {[%emt 0:03:00]} Nc6 {[%emt 0:00:30]} 8. Be3 {[%emt 0:00:30]} Ng4 {[%emt 0:22:30]} 9. Bg5 {[%emt 0:00:30]} f6 {[%emt 0:00:30]} 10. Bc1 {[%emt 0:08:30]} f5 {[%emt 0:00:30]} 11. dxe5 {[%emt 0:18:30]} Ngxe5 {[%emt 0:09:30]} 12. exf5 {[%emt 0:11:30]} Bxf5 {[%emt 0:08:30]} 13. Be3 {[%emt 0:03:30]} Ng4 {[%emt 0:01:30]} 14. Bd2 {[%emt 0:08:30]} Nge5 {[%emt 0:04:30]} 15. Be3 {[%emt 0:01:30]} Ng4 {[%emt 0:02:30]} 16. Bd2 {[%emt 0:01:30]} Nge5 {[%emt 0:05:30]} 17. Be3 {[%emt 0:02:30]} Ng4 {[%emt 0:00:00]} 18. Bd2 1/2-1/2

[Event "SRB-chT Women 1st League 2019"]
[Site "Subotica"]
[Date "2019.08.29"]
[Round "8"]
[White "Blagojevic, Tijana"]
[Black "Tomin, Ksenija"]
[Result "1-0"]
[ECO "B41"]
[WhiteElo "2155"]
[BlackElo "2041"]
[Annotator "NA"]
[PlyCount "95"]
[EventDate "2019.08.23"]
[EventType "team-tourn"]
[EventCountry "SRB"]
[SourceTitle "playchess.com"]
[Source "ChessBase"]
[SourceQuality "1"]
[TimeControl "40/5400+30:1800+30"]

1. e4 {[%emt 0:00:30]} c5 {[%emt 0:00:30]} 2. Nf3 {[%emt 0:00:00]} e6 {[%emt 0:00:00]} 3. d4 {[%emt 0:00:00]} cxd4 {[%emt 0:00:00]} 4. Nxd4 {[%emt 0:00:00]} a6 {[%emt 0:00:30]} 5. c4 {[%emt 0:00:00]} Nf6 {[%emt 0:00:30]} 6. Nc3 {[%emt 0:00:30]} d6 {[%emt 0:00:30]} 7. Be2 {[%emt 0:00:30]} Qc7 {[%emt 0:08:30]} 8. Be3 {[%emt 0:00:30]} b6 {[%emt 0:00:30]} 9. Rc1 {[%emt 0:00:30]} Nbd7 {[%emt 0:04:30]} 10. a3 {[%emt 0:02:30]} Bb7 {[%emt 0:01:30]} 11. f3 {[%emt 0:00:00]} Be7 {[%emt 0:00:30]} 12. O-O {[%emt 0:00:00]} Rc8 {[%emt 0:07:30]} 13. b4 {[%emt 0:00:30]} O-O {[%emt 0:01:30]} 14. Qd2 {[%emt 0:01:30]} Qb8 {[%emt 0:01:30]} 15. Kh1 {[%emt 0:03:30]} Bd8 {[%emt 0:05:30]} 16. Rc2 {[%emt 0:00:30]} Bc7 {[%emt 0:02:30]} 17. Bg1 {[%emt 0:00:00]} Rfd8 {[%emt 0:11:30]} 18. Rb1 {[%emt 0:00:00]} Qa8 {[%emt 0:09:30]} 19. Na4 {[%emt 0:03:30]} Ne5 {[%emt 0:03:30]} 20. Nb2 {[%emt 0:14:30]} h6 {[%emt 0:12:30]} 21. a4 {[%emt 0:01:30]} Kh7 {[%emt 0:09:49]} 22. Nd3 {[%emt 0:04:30]} g5 {[%emt 0:12:06]} 23. h3 {[%emt 0:06:30]} Ng6 {[%emt 0:02:18]} 24. a5 {[%emt 0:15:30]} bxa5 {[%emt 0:01:42]} 25. b5 {[%emt 0:00:30]} Bxe4 {[%emt 0:01:20]} 26. fxe4 {[%emt 0:04:30]} Nxe4 {[%emt 0:00:17]} 27. Qe3 {[%emt 0:05:30]} d5 {[%emt 0:00:45]} 28. Bh2 {[%emt 0:01:30]} Bb6 {[%emt 0:00:51]} 29. c5 {[%emt 0:02:30]} Nxc5 {[%emt 0:00:38]} 30. Nc6 {[%emt 0:01:30]} Nd7 {[%emt 0:00:51]} 31. Qc1 {[%emt 0:01:30]} Rg8 {[%emt 0:00:32]} 32. bxa6 {[%emt 0:00:30]} f5 {[%emt 0:00:42]} 33. Bg1 {[%emt 0:07:30]} Bxg1 {[%emt 0:01:07]} 34. Kxg1 {[%emt 0:00:30]} Nf6 {[%emt 0:00:02]} 35. a7 {[%emt 0:00:30]} Rxc6 {[%emt 0:00:48]} 36. Rxc6 {[%emt 0:00:30]} Qxa7+ {[%emt 0:00:05]} 37. Qc5 {[%emt 0:00:30]} Qxc5+ {[%emt 0:00:50]} 38. Nxc5 {[%emt 0:00:30]} Nf4 {[%emt 0:00:14]} 39. Bf1 {[%emt 0:01:30]} Re8 {[%emt 0:00:49]} 40. Rbb6 {[%emt 0:00:00]} Ne4 {[%emt 0:00:00]} 41. Nxe6 {[%emt 0:01:00]} Nxe6 {[%emt 0:08:44]} 42. Rxe6 {[%emt 0:00:30]} Rxe6 {[%emt 0:00:00]} 43. Rxe6 {[%emt 0:00:00]} a4 {[%emt 0:00:00]} 44. Bd3 {[%emt 0:01:00]} a3 {[%emt 0:03:30]} 45. Bxe4 {[%emt 0:01:30]} fxe4 {[%emt 0:00:30]} 46. Kf2 {[%emt 0:00:30]} h5 {[%emt 0:01:30]} 47. Ke3 {[%emt 0:00:00]} Kg7 {[%emt 0:00:30]} 48. Kd4 {[%emt 0:00:00]} 1-0

[Event "SRB-chT Women 1st League 2019"]
[Site "Subotica"]
[Date "2019.08.29"]
[Round "8"]
[White "Maksimovic, Suzana"]
[Black "Zarkovic, Mila"]
[Result "1-0"]
[ECO "A17"]
[WhiteElo "2150"]
[BlackElo "2141"]
[Annotator "NA"]
[PlyCount "87"]
[EventDate "2019.08.23"]
[EventType "team-tourn"]
[EventCountry "SRB"]
[SourceTitle "playchess.com"]
[Source "ChessBase"]
[SourceQuality "1"]
[TimeControl "40/5400+30:1800+30"]

1. Nf3 Nf6 2. c4 e6 3. Nc3 Bb4 4. Qc2 d5 5. a3 Bxc3 6. Qxc3 O-O 7. e3 Nbd7 8. b3 Re8 9. Bb2 e5 10. cxd5 Nxd5 11. Qc2 c6 12. h4 f6 13. h5 h6 14. Bc4 Kh8 15. Rh4 Qe7 16. O-O-O e4 17. Nd4 N7b6 18. f3 f5 19. g3 exf3 20. Nxf5 Bxf5 21. Qxf5 Nxc4 22. Rxc4 Rf8 23. Qg6 Nf6 24. Rf1 b5 25. Rf4 Qc5+ 26. Kb1 Qg5 27. Qxg5 hxg5 28. R4xf3 Kh7 29. Bxf6 gxf6 30. Rxf6 Rfd8 31. Kc2 c5 32. R1f5 c4 33. bxc4 bxc4 34. Rf7+ Kh8 35. Rxg5 Rd3 36. Rf4 Rad8 37. Rd4 R8xd4 38. exd4 Rxa3 39. g4 Rd3 40. Rd5 Rg3 41. g5 a6 42. Ra5 Kg7 43. Rxa6 Rxg5 44. Rg6+ 1-0

[Event "SRB-chT Women 1st League 2019"]
[Site "Subotica"]
[Date "2019.08.29"]
[Round "8"]
[White "Milutinovic, Stefana"]
[Black "Srdanovic, Jovana"]
[Result "1/2-1/2"]
[ECO "D13"]
[WhiteElo "2140"]
[BlackElo "2005"]
[Annotator "NA"]
[PlyCount "53"]
[EventDate "2019.08.23"]
[EventType "team-tourn"]
[EventCountry "SRB"]
[SourceTitle "playchess.com"]
[Source "ChessBase"]
[SourceQuality "1"]
[TimeControl "40/5400+30:1800+30"]

1. d4 {[%emt 0:00:30]} d5 {[%emt 0:00:30]} 2. c4 {[%emt 0:00:30]} c6 {[%emt 0:00:00]} 3. cxd5 {[%emt 0:00:00]} cxd5 {[%emt 0:00:00]} 4. Bf4 {[%emt 0:00:00]} Nf6 {[%emt 0:00:30]} 5. e3 {[%emt 0:00:30]} Nc6 {[%emt 0:02:30]} 6. Nc3 {[%emt 0:00:00]} e6 {[%emt 0:01:30]} 7. Bd3 {[%emt 0:01:00]} a6 {[%emt 0:01:30]} 8. Rc1 {[%emt 0:00:00]} Be7 {[%emt 0:00:30]} 9. Nf3 {[%emt 0:00:00]} Nh5 {[%emt 0:05:30]} 10. Be5 {[%emt 0:00:30]} Nxe5 {[%emt 0:00:30]} 11. dxe5 {[%emt 0:00:30]} g6 {[%emt 0:00:00]} 12. O-O {[%emt 0:03:30]} O-O {[%emt 0:04:00]} 13. Qb3 {[%emt 0:10:30]} b5 {[%emt 0:17:30]} 14. Nd4 {[%emt 0:31:30]} Bb7 {[%emt 0:03:30]} 15. a4 {[%emt 0:06:30]} b4 {[%emt 0:02:30]} 16. Nce2 {[%emt 0:02:30]} Qb6 {[%emt 0:01:30]} 17. Rc2 {[%emt 0:08:30]} Rac8 {[%emt 0:02:30]} 18. Rfc1 {[%emt 0:01:30]} Ng7 {[%emt 0:02:30]} 19. Nf4 {[%emt 0:02:30]} Bc5 {[%emt 0:01:30]} 20. Nfe2 {[%emt 0:07:30]} Be7 {[%emt 0:21:30]} 21. Rxc8 {[%emt 0:05:49]} Rxc8 {[%emt 0:00:30]} 22. Rxc8+ {[%emt 0:00:08]} Bxc8 {[%emt 0:00:00]} 23. Qc2 {[%emt 0:00:08]} Bd7 {[%emt 0:01:00]} 24. h3 {[%emt 0:03:32]} Kf8 {[%emt 0:02:30]} 25. Ng3 {[%emt 0:01:54]} f6 {[%emt 0:02:30]} 26. Nf3 {[%emt 0:01:55]} f5 {[%emt 0:09:45]} 27. Ne2 {[%emt 0:01:27]} 1/2-1/2

[Event "SRB-chT Women 1st League 2019"]
[Site "Subotica"]
[Date "2019.08.29"]
[Round "8"]
[White "Urosevic, Marija"]
[Black "Miladinovic, Lena"]
[Result "1-0"]
[ECO "E43"]
[WhiteElo "2064"]
[BlackElo "2119"]
[Annotator "NA"]
[PlyCount "57"]
[EventDate "2019.08.23"]
[EventType "team-tourn"]
[EventCountry "SRB"]
[SourceTitle "playchess.com"]
[Source "ChessBase"]
[SourceQuality "1"]
[TimeControl "40/5400+30:1800+30"]

1. d4 e6 2. c4 Bb4+ 3. Nc3 Nf6 4. e3 O-O 5. Bd3 c5 6. Nf3 b6 7. O-O Bxc3 8. bxc3 Bb7 9. Nd2 Nc6 10. f4 d5 11. Ba3 dxc4 12. Nxc4 Qd5 13. Qc2 Rfd8 14. e4 Qh5 15. dxc5 bxc5 16. e5 Nd5 17. Bxc5 Ba6 18. Rf3 Bxc4 19. Bxc4 Nxf4 20. Rxf4 Qxe5 21. Qf2 Qxc3 22. Rf1 Rd2 23. Qe3 Qc2 24. Qf3 Rc8 25. Rxf7 h6 26. Qg3 g5 27. Be3 Rd1 28. Bxe6 Re8 29. R7f2+ 1-0

[Event "SRB-chT Women 1st League 2019"]
[Site "Subotica"]
[Date "2019.08.29"]
[Round "8"]
[White "Nestorovic, Irena"]
[Black "Velikic, Adela"]
[Result "0-1"]
[ECO "D35"]
[WhiteElo "2050"]
[BlackElo "2252"]
[Annotator "NA"]
[PlyCount "100"]
[EventDate "2019.08.23"]
[EventType "team-tourn"]
[EventCountry "SRB"]
[SourceTitle "playchess.com"]
[Source "ChessBase"]
[SourceQuality "1"]
[TimeControl "40/5400+30:1800+30"]

1. d4 {[%emt 0:00:30]} d5 {[%emt 0:00:30]} 2. c4 {[%emt 0:00:00]} c6 {[%emt 0:00:00]} 3. Nf3 {[%emt 0:00:00]} Nf6 {[%emt 0:00:00]} 4. Nc3 {[%emt 0:00:30]} e6 {[%emt 0:00:30]} 5. cxd5 {[%emt 0:00:30]} exd5 {[%emt 0:01:30]} 6. Bg5 {[%emt 0:00:30]} Nbd7 {[%emt 0:01:30]} 7. e3 {[%emt 0:00:30]} Be7 {[%emt 0:17:30]} 8. Bd3 {[%emt 0:00:30]} Ne4 {[%emt 0:15:30]} 9. Bxe7 {[%emt 0:08:30]} Qxe7 {[%emt 0:00:30]} 10. Bxe4 {[%emt 0:00:30]} dxe4 {[%emt 0:00:30]} 11. Nd2 {[%emt 0:00:00]} Nf6 {[%emt 0:06:30]} 12. Qc2 {[%emt 0:03:00]} Bf5 {[%emt 0:01:30]} 13. h3 {[%emt 0:03:30]} O-O {[%emt 0:05:30]} 14. Nb3 {[%emt 0:09:30]} Rfe8 {[%emt 0:05:30]} 15. O-O {[%emt 0:04:30]} Qd7 {[%emt 0:07:30]} 16. Qe2 {[%emt 0:14:30]} b6 {[%emt 0:02:30]} 17. Rad1 {[%emt 0:02:30]} Rad8 {[%emt 0:05:30]} 18. Nd2 {[%emt 0:01:30]} Bg6 {[%emt 0:04:30]} 19. Nc4 {[%emt 0:01:30]} Bh5 {[%emt 0:03:11]} 20. g4 {[%emt 0:05:30]} Nxg4 {[%emt 0:02:55]} 21. hxg4 {[%emt 0:00:30]} Bxg4 {[%emt 0:00:04]} 22. f3 {[%emt 0:05:30]} Bxf3 {[%emt 0:00:34]} 23. Rxf3 {[%emt 0:00:00]} exf3 {[%emt 0:00:27]} 24. Qxf3 {[%emt 0:00:00]} Re6 {[%emt 0:02:03]} 25. Ne5 {[%emt 0:00:30]} Qe7 {[%emt 0:01:03]} 26. Qf5 {[%emt 0:18:30]} Rf6 {[%emt 0:07:18]} 27. Qg4 {[%emt 0:01:31]} Rh6 {[%emt 0:01:09]} 28. Kf2 {[%emt 0:02:41]} Re8 {[%emt 0:04:03]} 29. Rg1 {[%emt 0:01:41]} f6 {[%emt 0:00:33]} 30. Qf4 {[%emt 0:01:06]} Rh5 {[%emt 0:03:07]} 31. Nxc6 {[%emt 0:01:18]} Qe6 {[%emt 0:01:16]} 32. d5 {[%emt 0:02:06]} Qh3 {[%emt 0:00:34]} 33. e4 {[%emt 0:05:59]} Qd3 {[%emt 0:00:37]} 34. Qf3 {[%emt 0:04:15]} Rh2+ {[%emt 0:00:29]} 35. Rg2 {[%emt 0:00:47]} Qc2+ {[%emt 0:00:26]} 36. Kg3 {[%emt 0:00:00]} Qc1 {[%emt 0:00:17]} 37. Qf2 {[%emt 0:01:36]} h5 {[%emt 0:00:42]} 38. Nd4 {[%emt 0:00:35]} Rxg2+ {[%emt 0:00:00]} 39. Kxg2 {[%emt 0:00:00]} Qg5+ {[%emt 0:00:00]} 40. Kh2 {[%emt 0:00:00]} Qe5+ {[%emt 0:00:00]} 41. Kg2 {[%emt 0:02:55]} Qg5+ {[%emt 0:03:42]} 42. Qg3 {[%emt 0:04:30]} Qd2+ {[%emt 0:00:30]} 43. Qf2 {[%emt 0:00:30]} Qg5+ {[%emt 0:00:30]} 44. Kf3 {[%emt 0:08:06]} Qg4+ {[%emt 0:10:14]} 45. Ke3 {[%emt 0:00:08]} h4 {[%emt 0:03:24]} 46. Nf5 {[%emt 0:06:02]} h3 {[%emt 0:00:06]} 47. Ng3 {[%emt 0:00:11]} Re5 {[%emt 0:05:05]} 48. Qf3 {[%emt 0:04:52]} Qc8 {[%emt 0:00:35]} 49. Nf5 {[%emt 0:00:39]} Qxf5 {[%emt 0:02:13]} 50. Qg3 {[%emt 0:03:13]} Qg5+ 0-1